[Event "Titled Tuesday Blitz December 7 2021"]
[White "Erdogdu, Mert"]
[Black "Miszler, Levente"]
[WhiteFideId "6301495"]
[BlackFideId "763276"]
[WhiteElo "2485"]
[BlackElo "1966"]
[Result "1-0"]
[Round "11"]
[TimeControl "180+1"]
[Date "2021.12.07"]
[WhiteClock "0:01:37"]
[BlackClock "0:01:33"]

1. e4 {[%clk 0:03:00]}  e6 {[%clk 0:02:58]} 2. d4 {[%clk 0:03:00]}  d5 {[%clk 0:02:59]} 3. exd5 {[%clk 0:03:01]}  exd5 {[%clk 0:02:59]} 4. c4 {[%clk 0:03:02]}  Nf6 {[%clk 0:02:58]} 5. Nc3 {[%clk 0:03:03]}  Bb4 {[%clk 0:02:57]} 6. Bd3 {[%clk 0:03:03]}  dxc4 {[%clk 0:02:56]} 7. Bxc4 {[%clk 0:03:04]}  O-O {[%clk 0:02:56]} 8. Ne2 {[%clk 0:03:05]}  Nc6 {[%clk 0:02:54]} 9. O-O {[%clk 0:03:05]}  Re8 {[%clk 0:02:53]} 10. Bg5 {[%clk 0:03:04]}  h6 {[%clk 0:02:52]} 11. Bh4 {[%clk 0:03:04]}  Bg4 {[%clk 0:02:51]} 12. a3 {[%clk 0:02:58]}  Bd6 {[%clk 0:02:44]} 13. f3 {[%clk 0:02:53]}  Bh5 {[%clk 0:02:44]} 14. Qd3 {[%clk 0:02:47]}  a6 {[%clk 0:02:23]} 15. Rad1 {[%clk 0:02:45]}  b5 {[%clk 0:02:15]} 16. Bb3 {[%clk 0:02:44]}  Ne7 {[%clk 0:02:04]} 17. Bxf6 {[%clk 0:02:42]}  gxf6 {[%clk 0:02:01]} 18. Ne4 {[%clk 0:02:40]}  Bg6 {[%clk 0:01:54]} 19. Nxf6+ {[%clk 0:02:38]}  Kh8 {[%clk 0:01:49]} 20. Qd2 {[%clk 0:02:30]}  Bxh2+ {[%clk 0:01:45]} 21. Kxh2 {[%clk 0:02:23]}  Qd6+ {[%clk 0:01:45]} 22. Qf4 {[%clk 0:02:23]}  Red8 {[%clk 0:01:38]} 23. Ne4 {[%clk 0:02:13]}  Qxf4+ {[%clk 0:01:33]} 24. Nxf4 {[%clk 0:02:12]}  Nf5 {[%clk 0:01:34]} 25. Nxg6+ {[%clk 0:01:42]}  fxg6 {[%clk 0:01:34]} 26. Rfe1 {[%clk 0:01:39]}  Nxd4 {[%clk 0:01:34]} 27. Ba2 {[%clk 0:01:37]}  Rd6 {[%clk 0:01:33]} 28. Nxd6 {[%clk 0:01:37]} 1-0


[Site "https://www.chess.com"]

[Event "Titled Tuesday Blitz December 7 2021"]
[White "Fathy, Elameir"]
[Black "Perrine, Dalton"]
[WhiteFideId "10600396"]
[BlackFideId "2048434"]
[WhiteElo "2311"]
[BlackElo "2444"]
[Result "1-0"]
[Round "11"]
[TimeControl "180+1"]
[Date "2021.12.07"]
[WhiteClock "0:00:21"]
[BlackClock "0:00:01"]

1. d4 {[%clk 0:03:00]}  Nf6 {[%clk 0:02:56]} 2. Bg5 {[%clk 0:03:00]}  d5 {[%clk 0:02:56]} 3. Bxf6 {[%clk 0:02:59]}  gxf6 {[%clk 0:02:57]} 4. e3 {[%clk 0:02:59]}  c5 {[%clk 0:02:58]} 5. c4 {[%clk 0:02:55]}  cxd4 {[%clk 0:02:49]} 6. Qxd4 {[%clk 0:02:53]}  dxc4 {[%clk 0:02:28]} 7. Qxd8+ {[%clk 0:02:52]}  Kxd8 {[%clk 0:02:29]} 8. Bxc4 {[%clk 0:02:52]}  e6 {[%clk 0:02:28]} 9. Nc3 {[%clk 0:02:52]}  Nc6 {[%clk 0:02:04]} 10. Nf3 {[%clk 0:02:44]}  Bb4 {[%clk 0:01:53]} 11. O-O-O {[%clk 0:02:41]}  Ke7 {[%clk 0:01:53]} 12. Ne2 {[%clk 0:02:37]}  Bd7 {[%clk 0:01:43]} 13. Kb1 {[%clk 0:02:37]}  h5 {[%clk 0:01:32]} 14. g3 {[%clk 0:02:34]}  Na5 {[%clk 0:01:24]} 15. Bd3 {[%clk 0:02:27]}  Bc6 {[%clk 0:01:23]} 16. e4 {[%clk 0:02:27]}  Bc5 {[%clk 0:01:18]} 17. Nfd4 {[%clk 0:02:19]}  Bd7 {[%clk 0:01:03]} 18. f3 {[%clk 0:02:17]}  h4 {[%clk 0:01:00]} 19. g4 {[%clk 0:02:16]}  h3 {[%clk 0:00:57]} 20. Nc2 {[%clk 0:02:15]}  Bd6 {[%clk 0:00:52]} 21. Ned4 {[%clk 0:01:57]}  Rac8 {[%clk 0:00:46]} 22. Nb5 {[%clk 0:01:49]}  Bb8 {[%clk 0:00:45]} 23. Nc3 {[%clk 0:01:46]}  Nc4 {[%clk 0:00:39]} 24. Ne2 {[%clk 0:01:21]}  Ne5 {[%clk 0:00:34]} 25. Ned4 {[%clk 0:01:18]}  Nxd3 {[%clk 0:00:23]} 26. Rxd3 {[%clk 0:01:19]}  Rhd8 {[%clk 0:00:22]} 27. Rd2 {[%clk 0:01:13]}  Bf4 {[%clk 0:00:21]} 28. Re2 {[%clk 0:01:08]}  Rc4 {[%clk 0:00:15]} 29. b3 {[%clk 0:01:05]}  Rc3 {[%clk 0:00:14]} 30. Rf1 {[%clk 0:01:04]}  Rdc8 {[%clk 0:00:14]} 31. Kb2 {[%clk 0:01:03]}  Ke8 {[%clk 0:00:09]} 32. Kb1 {[%clk 0:00:59]}  Kf8 {[%clk 0:00:07]} 33. Na3 {[%clk 0:00:52]}  a6 {[%clk 0:00:04]} 34. Nc4 {[%clk 0:00:51]}  R3xc4 {[%clk 0:00:03]} 35. bxc4 {[%clk 0:00:51]}  Rxc4 {[%clk 0:00:04]} 36. Nb3 {[%clk 0:00:50]}  Ba4 {[%clk 0:00:03]} 37. Rd1 {[%clk 0:00:48]}  Ke7 {[%clk 0:00:02]} 38. Kb2 {[%clk 0:00:42]}  Be5+ {[%clk 0:00:01]} 39. Kb1 {[%clk 0:00:41]}  Rc3 {[%clk 0:00:02]} 40. Rf2 {[%clk 0:00:39]}  Bxb3 {[%clk 0:00:02]} 41. axb3 {[%clk 0:00:39]}  Rxb3+ {[%clk 0:00:03]} 42. Ka2 {[%clk 0:00:40]}  Rb4 {[%clk 0:00:02]} 43. Rb1 {[%clk 0:00:39]}  Rxb1 {[%clk 0:00:02]} 44. Kxb1 {[%clk 0:00:38]}  Bf4 {[%clk 0:00:03]} 45. Kc2 {[%clk 0:00:38]}  b5 {[%clk 0:00:03]} 46. Kd3 {[%clk 0:00:37]}  a5 {[%clk 0:00:03]} 47. Rc2 {[%clk 0:00:35]}  Kd7 {[%clk 0:00:03]} 48. Kd4 {[%clk 0:00:33]}  Kd6 {[%clk 0:00:02]} 49. Kd3 {[%clk 0:00:28]}  a4 {[%clk 0:00:01]} 50. Rc8 {[%clk 0:00:27]}  Kd7 {[%clk 0:00:01]} 51. Rh8 {[%clk 0:00:26]}  Bxh2 {[%clk 0:00:01]} 52. Rxh3 {[%clk 0:00:23]}  Be5 {[%clk 0:00:02]} 53. Rh8 {[%clk 0:00:21]}  b4 {[%clk 0:00:01]} 54. Kc4 {[%clk 0:00:21]} 1-0


[Site "https://www.chess.com"]

[Event "Titled Tuesday Blitz December 7 2021"]
[White "Gaehwiler, Gabriel"]
[Black "Pham, Le Thao Nguyen"]
[WhiteFideId "1314530"]
[BlackFideId "12401226"]
[WhiteElo "2383"]
[BlackElo "2286"]
[Result "1-0"]
[Round "11"]
[TimeControl "180+1"]
[Date "2021.12.07"]
[WhiteClock "0:01:59"]
[BlackClock "0:00:02"]

1. Nf3 {[%clk 0:03:00]}  d5 {[%clk 0:02:58]} 2. c4 {[%clk 0:03:00]}  c6 {[%clk 0:02:58]} 3. e3 {[%clk 0:03:00]}  Nf6 {[%clk 0:02:58]} 4. Nc3 {[%clk 0:03:01]}  a6 {[%clk 0:02:58]} 5. b3 {[%clk 0:03:01]}  Bg4 {[%clk 0:02:57]} 6. Bb2 {[%clk 0:03:02]}  e6 {[%clk 0:02:57]} 7. Be2 {[%clk 0:03:02]}  Nbd7 {[%clk 0:02:57]} 8. d4 {[%clk 0:03:03]}  Be7 {[%clk 0:02:55]} 9. h3 {[%clk 0:03:03]}  Bh5 {[%clk 0:02:55]} 10. Nd2 {[%clk 0:03:03]}  Bg6 {[%clk 0:02:46]} 11. Bf3 {[%clk 0:03:03]}  Bb4 {[%clk 0:02:38]} 12. O-O {[%clk 0:03:03]}  O-O {[%clk 0:02:37]} 13. a3 {[%clk 0:03:03]}  Bxc3 {[%clk 0:02:31]} 14. Bxc3 {[%clk 0:03:04]}  Re8 {[%clk 0:02:31]} 15. Re1 {[%clk 0:03:03]}  Ne4 {[%clk 0:02:28]} 16. Bb2 {[%clk 0:03:01]}  f5 {[%clk 0:02:24]} 17. Be2 {[%clk 0:02:59]}  Qh4 {[%clk 0:02:22]} 18. Rf1 {[%clk 0:02:56]}  Nxd2 {[%clk 0:01:54]} 19. Qxd2 {[%clk 0:02:56]}  Bh5 {[%clk 0:01:54]} 20. f3 {[%clk 0:02:55]}  Rf8 {[%clk 0:01:44]} 21. Bc1 {[%clk 0:02:52]}  Rf7 {[%clk 0:01:22]} 22. Qe1 {[%clk 0:02:51]}  Qe7 {[%clk 0:01:17]} 23. Qg3 {[%clk 0:02:49]}  Raf8 {[%clk 0:01:15]} 24. Bd2 {[%clk 0:02:47]}  h6 {[%clk 0:01:07]} 25. Bb4 {[%clk 0:02:45]}  c5 {[%clk 0:00:53]} 26. dxc5 {[%clk 0:02:45]}  Nxc5 {[%clk 0:00:39]} 27. Qe5 {[%clk 0:02:45]}  Qc7 {[%clk 0:00:19]} 28. Qxc7 {[%clk 0:02:42]}  Rxc7 {[%clk 0:00:20]} 29. Rad1 {[%clk 0:02:38]}  Bf7 {[%clk 0:00:19]} 30. Kf2 {[%clk 0:02:34]}  Rfc8 {[%clk 0:00:18]} 31. Rb1 {[%clk 0:02:24]}  e5 {[%clk 0:00:15]} 32. Rfd1 {[%clk 0:02:12]}  dxc4 {[%clk 0:00:13]} 33. bxc4 {[%clk 0:02:13]}  Re7 {[%clk 0:00:08]} 34. g4 {[%clk 0:02:07]}  Be6 {[%clk 0:00:04]} 35. Rb2 {[%clk 0:02:00]}  Kf7 {[%clk 0:00:04]} 36. Rbd2 {[%clk 0:02:00]}  Rcc7 {[%clk 0:00:02]} 37. Rd6 {[%clk 0:01:59]} 1-0


[Site "https://www.chess.com"]

[Event "Titled Tuesday Blitz December 7 2021"]
[White "Garagulya, Konstantin"]
[Black "Perez Gormaz, Matias"]
[WhiteFideId "4128931"]
[BlackFideId "3406342"]
[WhiteElo "2329"]
[BlackElo "2352"]
[Result "0-1"]
[Round "11"]
[TimeControl "180+1"]
[Date "2021.12.07"]
[WhiteClock "0:00:09"]
[BlackClock "0:01:16"]

1. d4 {[%clk 0:02:32]}  d5 {[%clk 0:02:58]} 2. Nf3 {[%clk 0:02:31]}  e6 {[%clk 0:02:59]} 3. c4 {[%clk 0:02:31]}  a6 {[%clk 0:02:58]} 4. cxd5 {[%clk 0:02:30]}  exd5 {[%clk 0:02:59]} 5. Qc2 {[%clk 0:02:30]}  h6 {[%clk 0:02:54]} 6. Bf4 {[%clk 0:02:28]}  Bd6 {[%clk 0:02:55]} 7. Bxd6 {[%clk 0:02:27]}  Qxd6 {[%clk 0:02:56]} 8. e3 {[%clk 0:02:27]}  Bg4 {[%clk 0:02:54]} 9. Ne5 {[%clk 0:02:27]}  Be6 {[%clk 0:02:54]} 10. f4 {[%clk 0:02:14]}  Ne7 {[%clk 0:02:53]} 11. Bd3 {[%clk 0:02:13]}  g6 {[%clk 0:02:53]} 12. g4 {[%clk 0:02:10]}  Nd7 {[%clk 0:02:51]} 13. f5 {[%clk 0:01:47]}  Nxe5 {[%clk 0:02:41]} 14. dxe5 {[%clk 0:01:46]}  Qxe5 {[%clk 0:02:35]} 15. fxe6 {[%clk 0:01:45]}  Qxe3+ {[%clk 0:02:35]} 16. Qe2 {[%clk 0:01:45]}  Qc1+ {[%clk 0:02:34]} 17. Qd1 {[%clk 0:01:32]}  Qxb2 {[%clk 0:02:31]} 18. exf7+ {[%clk 0:01:31]}  Kxf7 {[%clk 0:02:32]} 19. O-O {[%clk 0:01:31]}  Kg7 {[%clk 0:02:31]} 20. Qe2 {[%clk 0:01:07]}  Qd4+ {[%clk 0:02:19]} 21. Kh1 {[%clk 0:01:02]}  Nc6 {[%clk 0:02:15]} 22. Nd2 {[%clk 0:00:53]}  Rhe8 {[%clk 0:02:10]} 23. Qf3 {[%clk 0:00:30]}  Rf8 {[%clk 0:02:09]} 24. Qg3 {[%clk 0:00:26]}  Ne5 {[%clk 0:02:09]} 25. Rae1 {[%clk 0:00:23]}  Nxd3 {[%clk 0:01:42]} 26. Qxc7+ {[%clk 0:00:20]}  Kh8 {[%clk 0:01:41]} 27. Qe7 {[%clk 0:00:19]}  Nf2+ {[%clk 0:01:24]} 28. Rxf2 {[%clk 0:00:19]}  Rxf2 {[%clk 0:01:22]} 29. Nb3 {[%clk 0:00:14]}  Qf6 {[%clk 0:01:16]} 30. Qxb7 {[%clk 0:00:09]}  Qf3+ {[%clk 0:01:15]} 31. Kg1 {[%clk 0:00:09]}  Qg2# {[%clk 0:01:16]} 0-1


[Site "https://www.chess.com"]

[Event "Titled Tuesday Blitz December 7 2021"]
[White "Gelman, Alexander"]
[Black "Chan, Kim Yew"]
[WhiteFideId "4118316"]
[BlackFideId "5717981"]
[WhiteElo "2375"]
[BlackElo "2206"]
[Result "0-1"]
[Round "11"]
[TimeControl "180+1"]
[Date "2021.12.07"]
[WhiteClock "0:00:09"]
[BlackClock "0:00:07"]

1. d4 {[%clk 0:03:00]}  Nf6 {[%clk 0:02:59]} 2. Nc3 {[%clk 0:03:01]}  d5 {[%clk 0:02:56]} 3. Bf4 {[%clk 0:03:00]}  e6 {[%clk 0:02:53]} 4. Nb5 {[%clk 0:03:00]}  Na6 {[%clk 0:02:53]} 5. e3 {[%clk 0:02:59]}  c6 {[%clk 0:02:44]} 6. Nc3 {[%clk 0:02:59]}  Bd6 {[%clk 0:02:37]} 7. Nf3 {[%clk 0:02:59]}  Nc7 {[%clk 0:02:36]} 8. Ne5 {[%clk 0:02:59]}  O-O {[%clk 0:02:35]} 9. Qf3 {[%clk 0:02:59]}  c5 {[%clk 0:02:33]} 10. dxc5 {[%clk 0:02:59]}  Bxc5 {[%clk 0:02:34]} 11. Bd3 {[%clk 0:02:59]}  b5 {[%clk 0:02:30]} 12. Qh3 {[%clk 0:02:51]}  g6 {[%clk 0:02:14]} 13. O-O-O {[%clk 0:02:43]}  a5 {[%clk 0:02:08]} 14. Bg5 {[%clk 0:02:30]}  Nce8 {[%clk 0:01:36]} 15. Bxb5 {[%clk 0:02:27]}  Qb6 {[%clk 0:01:31]} 16. Qh4 {[%clk 0:01:57]}  Bb4 {[%clk 0:01:17]} 17. Bxf6 {[%clk 0:01:14]}  Nxf6 {[%clk 0:01:18]} 18. Qxf6 {[%clk 0:01:14]}  Bxc3 {[%clk 0:01:17]} 19. bxc3 {[%clk 0:01:14]}  Qxb5 {[%clk 0:01:14]} 20. Ng4 {[%clk 0:01:06]}  h5 {[%clk 0:00:56]} 21. Nh6+ {[%clk 0:01:06]}  Kh7 {[%clk 0:00:56]} 22. Nxf7 {[%clk 0:01:07]}  Ba6 {[%clk 0:00:41]} 23. h4 {[%clk 0:00:43]}  Rab8 {[%clk 0:00:13]} 24. Ng5+ {[%clk 0:00:32]}  Kh6 {[%clk 0:00:13]} 25. Qe7 {[%clk 0:00:32]}  Qb7 {[%clk 0:00:08]} 26. Qxb7 {[%clk 0:00:27]}  Rxb7 {[%clk 0:00:09]} 27. f4 {[%clk 0:00:26]}  Rb6 {[%clk 0:00:08]} 28. Rd4 {[%clk 0:00:25]}  Rfb8 {[%clk 0:00:08]} 29. Kd2 {[%clk 0:00:25]}  Rb2 {[%clk 0:00:08]} 30. Nxe6 {[%clk 0:00:25]}  Rxa2 {[%clk 0:00:08]} 31. Rh3 {[%clk 0:00:24]}  Rbb2 {[%clk 0:00:08]} 32. Ke1 {[%clk 0:00:09]}  Rxc2 {[%clk 0:00:08]} 33. Rg3 {[%clk 0:00:08]}  Ra1+ {[%clk 0:00:07]} 34. Rd1 {[%clk 0:00:09]}  Re2+ {[%clk 0:00:07]} 0-1


[Site "https://www.chess.com"]

[Event "Titled Tuesday Blitz December 7 2021"]
[White "Gheorghiu, Calin"]
[Black "Tasev, Dejan"]
[WhiteFideId "1200305"]
[BlackFideId "936618"]
[WhiteElo "2213"]
[BlackElo "2253"]
[Result "0-1"]
[Round "11"]
[TimeControl "180+1"]
[Date "2021.12.07"]
[WhiteClock "0:00:27"]
[BlackClock "0:01:28"]

1. d4 {[%clk 0:03:00]}  Nf6 {[%clk 0:02:59]} 2. Bf4 {[%clk 0:03:00]}  e6 {[%clk 0:02:59]} 3. e3 {[%clk 0:02:57]}  b6 {[%clk 0:02:59]} 4. Nf3 {[%clk 0:02:55]}  Bb7 {[%clk 0:02:59]} 5. h3 {[%clk 0:02:54]}  h6 {[%clk 0:02:58]} 6. Be2 {[%clk 0:02:49]}  d6 {[%clk 0:02:58]} 7. O-O {[%clk 0:02:47]}  g5 {[%clk 0:02:56]} 8. Bh2 {[%clk 0:02:45]}  g4 {[%clk 0:02:56]} 9. hxg4 {[%clk 0:02:44]}  Nxg4 {[%clk 0:02:56]} 10. Bg3 {[%clk 0:02:42]}  Rg8 {[%clk 0:02:55]} 11. c4 {[%clk 0:02:39]}  Nxe3 {[%clk 0:02:53]} 12. fxe3 {[%clk 0:02:37]}  Rxg3 {[%clk 0:02:52]} 13. Nc3 {[%clk 0:02:32]}  Nd7 {[%clk 0:02:48]} 14. d5 {[%clk 0:02:21]}  Qe7 {[%clk 0:02:36]} 15. Qd2 {[%clk 0:02:06]}  O-O-O {[%clk 0:02:30]} 16. a4 {[%clk 0:02:06]}  Bg7 {[%clk 0:02:26]} 17. a5 {[%clk 0:02:03]}  Bxc3 {[%clk 0:02:22]} 18. bxc3 {[%clk 0:01:57]}  Rdg8 {[%clk 0:02:21]} 19. Rf2 {[%clk 0:01:53]}  Nc5 {[%clk 0:02:17]} 20. axb6 {[%clk 0:01:52]}  axb6 {[%clk 0:02:11]} 21. Ra7 {[%clk 0:01:24]}  Kb8 {[%clk 0:01:46]} 22. Qa2 {[%clk 0:01:12]}  exd5 {[%clk 0:01:38]} 23. cxd5 {[%clk 0:00:37]}  Qxe3 {[%clk 0:01:35]} 24. Bf1 {[%clk 0:00:27]}  Rxf3 {[%clk 0:01:28]} 0-1


[Site "https://www.chess.com"]

[Event "Titled Tuesday Blitz December 7 2021"]
[White "Guliev, Logman"]
[Black "Kalogeris, Ioannis"]
[WhiteFideId "13400061"]
[BlackFideId "4239563"]
[WhiteElo "2128"]
[BlackElo "2287"]
[Result "0-1"]
[Round "11"]
[TimeControl "180+1"]
[Date "2021.12.07"]
[WhiteClock "0:00:04"]
[BlackClock "0:00:04"]

1. e4 {[%clk 0:03:00]}  e5 {[%clk 0:02:54]} 2. Nf3 {[%clk 0:03:00]}  Nc6 {[%clk 0:02:51]} 3. Bb5 {[%clk 0:03:00]}  a6 {[%clk 0:02:51]} 4. Ba4 {[%clk 0:03:01]}  b5 {[%clk 0:02:51]} 5. Bb3 {[%clk 0:02:59]}  Nf6 {[%clk 0:02:52]} 6. O-O {[%clk 0:02:58]}  Bc5 {[%clk 0:02:52]} 7. c3 {[%clk 0:02:58]}  d6 {[%clk 0:02:52]} 8. d4 {[%clk 0:02:58]}  Bb6 {[%clk 0:02:52]} 9. h3 {[%clk 0:02:57]}  O-O {[%clk 0:02:49]} 10. Be3 {[%clk 0:02:57]}  exd4 {[%clk 0:02:21]} 11. cxd4 {[%clk 0:02:55]}  Na5 {[%clk 0:02:15]} 12. Bc2 {[%clk 0:02:53]}  Nc4 {[%clk 0:01:57]} 13. Bc1 {[%clk 0:02:52]}  Bb7 {[%clk 0:01:52]} 14. b3 {[%clk 0:02:48]}  Na5 {[%clk 0:01:51]} 15. Nbd2 {[%clk 0:02:47]}  c5 {[%clk 0:01:49]} 16. Bb2 {[%clk 0:02:44]}  Nc6 {[%clk 0:01:35]} 17. e5 {[%clk 0:02:40]}  dxe5 {[%clk 0:01:25]} 18. dxe5 {[%clk 0:02:40]}  Nd5 {[%clk 0:01:24]} 19. Rc1 {[%clk 0:02:33]}  Nf4 {[%clk 0:01:21]} 20. Ne4 {[%clk 0:02:29]}  Qxd1 {[%clk 0:01:20]} 21. Rfxd1 {[%clk 0:02:28]}  Ne2+ {[%clk 0:01:19]} 22. Kh2 {[%clk 0:02:25]}  Nxc1 {[%clk 0:01:18]} 23. Rxc1 {[%clk 0:02:25]}  Rad8 {[%clk 0:01:13]} 24. Nd6 {[%clk 0:02:24]}  Ba8 {[%clk 0:01:12]} 25. Ng5 {[%clk 0:02:18]}  h6 {[%clk 0:01:01]} 26. Bh7+ {[%clk 0:01:57]}  Kh8 {[%clk 0:00:58]} 27. Ndxf7+ {[%clk 0:01:50]}  Rxf7 {[%clk 0:00:57]} 28. Nxf7+ {[%clk 0:01:51]}  Kxh7 {[%clk 0:00:58]} 29. Nxd8 {[%clk 0:01:51]}  Nxd8 {[%clk 0:00:59]} 30. Rd1 {[%clk 0:01:49]}  Bc6 {[%clk 0:00:56]} 31. f4 {[%clk 0:01:32]}  Bc7 {[%clk 0:00:42]} 32. g3 {[%clk 0:01:27]}  Kg6 {[%clk 0:00:35]} 33. g4 {[%clk 0:01:13]}  h5 {[%clk 0:00:33]} 34. f5+ {[%clk 0:01:10]}  Kg5 {[%clk 0:00:31]} 35. Bc1+ {[%clk 0:00:57]}  Kh4 {[%clk 0:00:31]} 36. Bf4 {[%clk 0:00:56]}  hxg4 {[%clk 0:00:27]} 37. Rg1 {[%clk 0:00:56]}  Bf3 {[%clk 0:00:21]} 38. hxg4 {[%clk 0:00:50]}  Bxg4 {[%clk 0:00:20]} 39. Bg3+ {[%clk 0:00:34]}  Kg5 {[%clk 0:00:19]} 40. e6 {[%clk 0:00:31]}  Bxg3+ {[%clk 0:00:18]} 41. Rxg3 {[%clk 0:00:31]}  Nc6 {[%clk 0:00:18]} 42. Rc3 {[%clk 0:00:26]}  Bxf5 {[%clk 0:00:14]} 43. Rxc5 {[%clk 0:00:26]}  Ne7 {[%clk 0:00:14]} 44. Rc7 {[%clk 0:00:25]}  Kf6 {[%clk 0:00:14]} 45. Ra7 {[%clk 0:00:25]}  Kxe6 {[%clk 0:00:07]} 46. Rxa6+ {[%clk 0:00:25]}  Kd5 {[%clk 0:00:04]} 47. a4 {[%clk 0:00:20]}  b4 {[%clk 0:00:03]} 48. Ra5+ {[%clk 0:00:17]}  Kd4 {[%clk 0:00:02]} 49. Rb5 {[%clk 0:00:17]}  Bd3 {[%clk 0:00:01]} 50. Rxb4+ {[%clk 0:00:16]}  Kc3 {[%clk 0:00:02]} 51. Rb7 {[%clk 0:00:16]}  Nf5 {[%clk 0:00:02]} 52. a5 {[%clk 0:00:15]}  g5 {[%clk 0:00:03]} 53. b4 {[%clk 0:00:10]}  g4 {[%clk 0:00:03]} 54. b5 {[%clk 0:00:10]}  g3+ {[%clk 0:00:04]} 55. Kh3 {[%clk 0:00:09]}  Bf1+ {[%clk 0:00:04]} 56. Kg4 {[%clk 0:00:05]}  g2 {[%clk 0:00:04]} 57. Rc7+ {[%clk 0:00:05]}  Kb4 {[%clk 0:00:05]} 58. Kxf5 {[%clk 0:00:05]}  g1=Q {[%clk 0:00:05]} 59. b6 {[%clk 0:00:03]}  Bh3+ {[%clk 0:00:04]} 60. Ke5 {[%clk 0:00:04]}  Kxa5 {[%clk 0:00:04]} 61. Kd6 {[%clk 0:00:04]}  Qg3+ {[%clk 0:00:04]} 62. Kc5 {[%clk 0:00:03]}  Qc3+ {[%clk 0:00:04]} 63. Kd6 {[%clk 0:00:03]}  Qd4+ {[%clk 0:00:04]} 64. Kc6 {[%clk 0:00:04]}  Bg2# {[%clk 0:00:04]} 0-1


[Site "https://www.chess.com"]

[Event "Titled Tuesday Blitz December 7 2021"]
[White "Guseva, Marina"]
[Black "Aldokhin, Ivan"]
[WhiteFideId "4149351"]
[BlackFideId "24115720"]
[WhiteElo "2279"]
[BlackElo "2231"]
[Result "0-1"]
[Round "11"]
[TimeControl "180+1"]
[Date "2021.12.07"]
[WhiteClock "0:00:06"]
[BlackClock "0:00:06"]

1. d4 {[%clk 0:03:00]}  Nf6 {[%clk 0:02:56]} 2. c4 {[%clk 0:03:00]}  g6 {[%clk 0:02:56]} 3. Nf3 {[%clk 0:02:59]}  Bg7 {[%clk 0:02:57]} 4. g3 {[%clk 0:03:00]}  d6 {[%clk 0:02:57]} 5. Bg2 {[%clk 0:03:00]}  O-O {[%clk 0:02:58]} 6. O-O {[%clk 0:03:00]}  Nc6 {[%clk 0:02:58]} 7. Nc3 {[%clk 0:03:00]}  Bf5 {[%clk 0:02:56]} 8. d5 {[%clk 0:02:56]}  Na5 {[%clk 0:02:55]} 9. Nd2 {[%clk 0:02:57]}  c5 {[%clk 0:02:54]} 10. e4 {[%clk 0:02:57]}  Bd7 {[%clk 0:02:54]} 11. Qc2 {[%clk 0:02:57]}  e6 {[%clk 0:02:51]} 12. Rb1 {[%clk 0:02:50]}  exd5 {[%clk 0:02:47]} 13. cxd5 {[%clk 0:02:49]}  b5 {[%clk 0:02:42]} 14. b3 {[%clk 0:02:47]}  Re8 {[%clk 0:02:32]} 15. Bb2 {[%clk 0:02:45]}  b4 {[%clk 0:02:04]} 16. Nd1 {[%clk 0:02:42]}  Bb5 {[%clk 0:02:04]} 17. Ne3 {[%clk 0:02:31]}  Bxf1 {[%clk 0:02:03]} 18. Rxf1 {[%clk 0:02:23]}  Nd7 {[%clk 0:01:56]} 19. Bxg7 {[%clk 0:02:18]}  Kxg7 {[%clk 0:01:56]} 20. f4 {[%clk 0:02:13]}  Qf6 {[%clk 0:01:53]} 21. e5 {[%clk 0:02:13]}  dxe5 {[%clk 0:01:47]} 22. Ne4 {[%clk 0:02:10]}  Qb6 {[%clk 0:01:43]} 23. f5 {[%clk 0:01:59]}  c4 {[%clk 0:01:43]} 24. Qf2 {[%clk 0:01:58]}  f6 {[%clk 0:01:19]} 25. bxc4 {[%clk 0:01:37]}  Nb7 {[%clk 0:01:05]} 26. Kh1 {[%clk 0:01:30]}  Nbc5 {[%clk 0:01:03]} 27. Nxc5 {[%clk 0:01:19]}  Qxc5 {[%clk 0:00:57]} 28. Be4 {[%clk 0:01:18]}  g5 {[%clk 0:00:54]} 29. Qf3 {[%clk 0:01:12]}  a5 {[%clk 0:00:45]} 30. h4 {[%clk 0:01:11]}  gxh4 {[%clk 0:00:32]} 31. gxh4 {[%clk 0:01:11]}  Kh8 {[%clk 0:00:32]} 32. Ng4 {[%clk 0:01:09]}  Rg8 {[%clk 0:00:30]} 33. Nh6 {[%clk 0:01:08]}  Rg7 {[%clk 0:00:30]} 34. Qh5 {[%clk 0:01:06]}  Qe3 {[%clk 0:00:22]} 35. Bf3 {[%clk 0:00:54]}  a4 {[%clk 0:00:20]} 36. Nf7+ {[%clk 0:00:53]}  Kg8 {[%clk 0:00:19]} 37. Nh6+ {[%clk 0:00:50]}  Kf8 {[%clk 0:00:19]} 38. Ng4 {[%clk 0:00:45]}  Qf4 {[%clk 0:00:17]} 39. Be2 {[%clk 0:00:35]}  Qe4+ {[%clk 0:00:15]} 40. Bf3 {[%clk 0:00:33]}  Qxc4 {[%clk 0:00:15]} 41. Rg1 {[%clk 0:00:28]}  b3 {[%clk 0:00:14]} 42. Qh6 {[%clk 0:00:25]}  Qf4 {[%clk 0:00:12]} 43. Qxf4 {[%clk 0:00:18]}  exf4 {[%clk 0:00:12]} 44. axb3 {[%clk 0:00:19]}  axb3 {[%clk 0:00:13]} 45. Rb1 {[%clk 0:00:19]}  Rb8 {[%clk 0:00:13]} 46. h5 {[%clk 0:00:18]}  Ne5 {[%clk 0:00:11]} 47. Nxe5 {[%clk 0:00:16]}  fxe5 {[%clk 0:00:12]} 48. Be4 {[%clk 0:00:15]}  Rg3 {[%clk 0:00:12]} 49. f6 {[%clk 0:00:14]}  h6 {[%clk 0:00:09]} 50. d6 {[%clk 0:00:14]}  Re3 {[%clk 0:00:08]} 51. Bg6 {[%clk 0:00:12]}  f3 {[%clk 0:00:07]} 52. d7 {[%clk 0:00:11]}  f2 {[%clk 0:00:07]} 53. Kg2 {[%clk 0:00:06]}  Re1 {[%clk 0:00:06]} 0-1


[Site "https://www.chess.com"]